lending/lending_fUSD_20260328
["ID","MTS","AMOUNT","RATE_DAILY","PERIOD"]
[418980748,1774708238884,-500.0,0.0001302,2]
[418980749,1774708238895,-151.0,0.0001302,2]
[418980750,1774708238905,-151.0,0.0001302,2]
[418980751,1774708238915,-500.0,0.0001302,2]
[418980752,1774708238925,-151.0,0.0001302,2]
[418980753,1774708238936,-500.0,0.0001302,2]
[418980754,1774708238949,-151.0,0.0001302,2]
[418980755,1774708238959,-500.0,0.0001302,2]
[418980756,1774708238970,-151.0,0.0001302,2]
[418980757,1774708238980,-151.0,0.0001302,2]
[418980758,1774708238991,-151.0,0.0001302,2]
[418980759,1774708239001,-151.0,0.0001302,2]
[418980760,1774708239011,-151.0,0.0001302,2]
[418980761,1774708239023,-151.0,0.0001302,2]
[418980762,1774708239032,-151.0,0.0001302,2]
[418980763,1774708239042,-151.0,0.0001302,2]
[418980764,1774708239051,-151.0,0.0001302,2]
[418980765,1774708239061,-151.0,0.0001302,2]
[418980766,1774708239072,-779.59145648,0.00013022,2]
[418980767,1774708239081,-779.59145648,0.00013022,2]
[418980768,1774708239091,-779.59145648,0.00013022,2]
[418980769,1774708239100,-151.0,0.00013025,2]
[418980770,1774708239110,-500.0,0.00013027,2]
[418980771,1774708239120,-500.0,0.00013027,2]
[418980772,1774708239129,-500.0,0.00013027,2]
[418980773,1774708239139,-553.4910254,0.00013027,2]
[418980774,1774708239150,-500.0,0.00013027,2]
[418980775,1774708239160,-206.67246309,0.00013027,2]
[418980776,1774708239173,-182.96447148,0.00013027,2]
[418980777,1774708239184,-773.39016081,0.00013027,2]
[418980778,1774708239195,-773.39016081,0.00013027,2]
[418980779,1774708239205,-773.39016081,0.00013027,2]
[418980780,1774708239216,-773.39016081,0.00013027,2]
[418980781,1774708239226,-773.39016081,0.00013027,2]
[418980782,1774708239237,-773.39016081,0.00013027,2]
[418980783,1774708239248,-773.39016081,0.00013027,2]
[418980784,1774708239257,-773.39016081,0.00013027,2]
[418980785,1774708239267,-773.39016081,0.00013027,2]
[418980786,1774708239276,-773.39016081,0.00013027,2]
[418980787,1774708239287,-773.39016081,0.00013027,2]
[418980788,1774708239296,-773.39016081,0.00013027,2]
[418980789,1774708239306,-773.39016081,0.00013027,2]
[418980790,1774708239316,-773.39016081,0.00013027,2]
[418980791,1774708239326,-773.39016081,0.00013027,2]
[418980792,1774708239335,-773.39016081,0.00013027,2]
[418980793,1774708239347,-773.39016081,0.00013027,2]
[418980794,1774708239357,-773.39016081,0.00013027,2]
[418980795,1774708239367,-773.39016081,0.00013027,2]
[418980796,1774708239378,-773.39016081,0.00013027,2]
[418980797,1774708239389,-773.39016081,0.00013027,2]
[418980798,1774708239400,-773.39016081,0.00013027,2]
[418980799,1774708239412,-773.39016081,0.00013027,2]
[418980800,1774708239422,-773.39016081,0.00013027,2]
[418980801,1774708239431,-773.39016081,0.00013027,2]
[418980802,1774708239442,-773.39016081,0.00013027,2]
[418980803,1774708239452,-773.39016081,0.00013027,2]
[418980804,1774708239461,-773.39016081,0.00013027,2]
[418980805,1774708239471,-773.39016081,0.00013027,2]
[418980806,1774708239481,-773.39016081,0.00013027,2]
[418980807,1774708239490,-773.39016081,0.00013027,2]
[418980808,1774708239500,-773.39016081,0.00013027,2]
[418980809,1774708239509,-773.39016081,0.00013027,2]
[418980810,1774708239519,-773.39016081,0.00013027,2]
[418980811,1774708239529,-773.39016081,0.00013027,2]
[418980812,1774708239538,-773.39016081,0.00013027,2]
[418980813,1774708239551,-773.39016081,0.00013027,2]
[418980814,1774708239561,-773.39016081,0.00013027,2]
[418980815,1774708239570,-773.39016081,0.00013027,2]
[418980816,1774708239580,-773.39016081,0.00013027,2]
[418980817,1774708239589,-773.39016081,0.00013027,2]
[418980818,1774708239599,-773.39016081,0.00013027,2]
[418980819,1774708239608,-773.39016081,0.00013027,2]
[418980820,1774708239618,-773.39016081,0.00013027,2]
[418980821,1774708239627,-773.39016081,0.00013027,2]
[418980822,1774708239637,-773.39016081,0.00013027,2]
[418980823,1774708239647,-773.39016081,0.00013027,2]
[418980824,1774708239657,-773.39016081,0.00013027,2]
[418980825,1774708239666,-625.45103338,0.00013027,2]
[418980826,1774708239675,-772.06812634,0.00013027,2]
[418980827,1774708239684,-772.06812634,0.00013027,2]
[418980828,1774708239694,-772.06812634,0.00013027,2]
[418980829,1774708239704,-772.06812634,0.00013027,2]
[418980830,1774708239713,-772.06812634,0.00013027,2]
[418980831,1774708239724,-772.06812634,0.00013027,2]
[418980832,1774708239734,-772.06812634,0.00013027,2]
[418980833,1774708239747,-772.06812634,0.00013027,2]
[418980834,1774708239756,-772.06812634,0.00013027,2]
[418980835,1774708239767,-772.06812634,0.00013027,2]
[418980836,1774708239777,-772.06812634,0.00013027,2]
[418980837,1774708239787,-772.06812634,0.00013027,2]
[418980838,1774708239797,-772.06812634,0.00013027,2]
[418980839,1774708239807,-772.06812634,0.00013027,2]
[418980840,1774708239817,-772.06812634,0.00013027,2]
[418980841,1774708239827,-772.06812634,0.00013027,2]
[418980842,1774708239837,-772.06812634,0.00013027,2]
[418980843,1774708239846,-772.06812634,0.00013027,2]
[418980844,1774708239856,-772.06812634,0.00013027,2]
[418980845,1774708239866,-772.06812634,0.00013027,2]
[418980846,1774708239875,-772.06812634,0.00013027,2]
[418980847,1774708239887,-772.06812634,0.00013027,2]
[418980848,1774708239897,-772.06812634,0.00013027,2]
[418980850,1774708239907,-772.06812634,0.00013027,2]
[418980852,1774708239917,-500.0,0.00013027,2]
[418980854,1774708239927,-772.06812634,0.00013027,2]
[418980855,1774708239936,-264.01290907,0.00013027,2]
[418980856,1774708239946,-772.06812634,0.00013027,2]
[418980857,1774708239956,-500.0,0.00013027,2]
[418980859,1774708239966,-500.0,0.00013027,2]
[418980860,1774708239976,-772.06812634,0.00013027,2]
[418980861,1774708239986,-500.0,0.00013027,2]
[418980862,1774708239996,-500.0,0.00013027,2]
[418980863,1774708240006,-500.0,0.00013027,2]
[418980864,1774708240015,-500.0,0.00013027,2]
[418980865,1774708240025,-500.36278592,0.00013073,2]
[418980866,1774708240034,-500.29196162,0.00013073,2]
[418980867,1774708240044,-575.19859108,0.00013073,2]
[418980868,1774708240054,-161.69769006,0.00013073,2]
[418980869,1774708240064,-500.0,0.00013073,2]
[418980870,1774708240074,-160.30121654,0.00013073,2]
[418980871,1774708240085,-500.0,0.00013073,2]
[418980872,1774708240096,-500.10260648,0.00013073,2]
[418980873,1774708240106,-500.0,0.00013073,2]
[418980874,1774708240116,-500.0,0.00013073,2]
[418980875,1774708240126,-500.41700518,0.00013073,2]
[418980876,1774708240136,-167.5141308,0.00013073,2]
[418980877,1774708240147,-500.0,0.00013073,2]
[418980878,1774708240158,-500.0,0.00013073,2]
[418980879,1774708240167,-500.0,0.00013073,2]
[418980880,1774708240178,-500.0,0.00013073,2]
[418980881,1774708240189,-160.29659322,0.00013073,2]
[418980882,1774708240200,-150.45096626,0.00013126,2]
[418980883,1774708240343,-5853.69924044,0.00013144,2]
[418980884,1774708240354,-9676.1154,0.00013203,2]
[418980885,1774708240363,-515.8645318,0.00013253,2]
[418980886,1774708240372,-166.62036293,0.00013266,2]
[418980887,1774708240382,-193.71930115,0.00013266,2]
[418980888,1774708240392,-203.23674373,0.00013266,2]
[418980889,1774708240401,-158.22,0.00013288,2]
[418980890,1774708240410,-834.55,0.00013293,2]
[418980891,1774708240419,-500.0,0.00013293,2]
[418980892,1774708240429,-834.48670674,0.00013387,2]
[418980893,1774708240439,-206.34292365,0.00013387,2]
[418980894,1774708240448,-1103.7299612,0.00013387,2]
[418980895,1774708240458,-10338.27838405,0.00013387,2]
[418980896,1774708240467,-760.0,0.00013403,2]
[418980897,1774708240476,-1000.0,0.00013421,2]
[418980898,1774708240485,-501.85241925,0.00013421,2]
[418980899,1774708240494,-1000.0,0.00013421,2]
[418980900,1774708240504,-668.60618864,0.00013421,2]
[418980901,1774708240513,-3240.0,0.00013425,2]
[418980902,1774708240522,-1600.0,0.00013551,2]
[418980903,1774708240532,-834.55,0.00013567,2]
[418980904,1774708240542,-500.0,0.00013567,2]
[418980905,1774708240551,-200.0,0.00013568,2]
[418980906,1774708240561,-515.8645318,0.00013584,2]
[418980907,1774708240570,-1000.0,0.00013621,2]
[418980908,1774708240579,-501.9357854,0.00013621,2]
[418980909,1774708240589,-1004.28717166,0.00013621,2]
[418980910,1774708240598,-169.86308771,0.00013621,2]
[418980911,1774708240607,-500.62783858,0.00013621,2]
[418980912,1774708240616,-598.58411617,0.00013621,2]
[418980913,1774708240625,-1000.0,0.00013621,2]
[418980914,1774708240635,-225.41,0.00013698,2]
[418980915,1774708240644,-150.0,0.00013699,2]
[418980916,1774708240653,-390.22598086,0.00013699,2]
[418980917,1774708240663,-503.0,0.000137,2]
[418980918,1774708240672,-2368.01,0.000137,2]
[418980919,1774708240682,-3605.62,0.000137,2]
[418980920,1774708240691,-2120.06,0.000137,2]
[418980921,1774708240700,-2957.83,0.000137,2]
[418980922,1774708240709,-348.16,0.00013722,2]
[418980923,1774708240718,-162.93191076,0.00013825,2]
[418980924,1774708240727,-834.55,0.00013841,2]
[418980925,1774708240737,-515.8645318,0.00013914,2]
[418980926,1774708240746,-239.50628899,0.00013968,2]
[418980927,1774708240755,-500.0,0.00013968,2]
[418980928,1774708240764,-5000.0,0.0001397,2]
[418980929,1774708240774,-2541.44376132,0.0001397,2]
[418980930,1774708240783,-250.0,0.0001397,2]
[418980931,1774708240792,-5000.0,0.0001397,2]
[418980932,1774708240802,-250.0,0.0001397,2]
[418980933,1774708240811,-2512.33133398,0.0001397,2]
[418980935,1774708240821,-500.0,0.0001397,2]
[418980936,1774708240832,-500.0,0.0001397,2]
[418980937,1774708240842,-500.0,0.0001397,2]
[418980938,1774708240853,-150.0,0.00013973,2]
[418980939,1774708240862,-255.0,0.00013983,2]
[418980940,1774708240871,-1716.46,0.00013993,2]
[418980941,1774708240882,-519.0,0.00014,2]
[418980943,1774708240891,-407.32977688,0.00014063,2]
[418980945,1774708240901,-420.0,0.00014111,2]
[418980947,1774708240910,-420.0,0.00014111,2]
[418980948,1774708240920,-834.55,0.00014115,2]
[418980949,1774708240929,-484.52,0.00014115,2]
[418980950,1774708240939,-200.0,0.00014116,2]
[418980951,1774708240949,-1680.0,0.00014152,2]
[418980952,1774708240959,-500.0,0.00014168,2]
[418980953,1774708240969,-197.2035,0.000142,2]
[418980954,1774708240979,-266.27,0.00014212,2]
[418980955,1774708240989,-606.30030691,0.00014215,2]
[418980956,1774708240999,-300.0,0.00014219,2]
[418980957,1774708241009,-300.0,0.00014219,2]
[418980958,1774708241019,-300.0,0.00014219,2]
[418980959,1774708241029,-300.0,0.00014219,2]
[418980960,1774708241039,-302.99736918,0.00014219,2]
[418980961,1774708241048,-600.0,0.00014219,2]
[418980962,1774708241057,-600.0,0.00014219,2]
[418980963,1774708241067,-600.0,0.00014219,2]
[418980964,1774708241079,-600.0,0.00014219,2]
[418980965,1774708241089,-502.98943545,0.00014219,2]
[418980966,1774708241099,-515.8645318,0.00014245,2]
[418980967,1774708241109,-150.0,0.00014247,2]
[418980968,1774708241118,-158.22,0.0001431,2]
[418980969,1774708241128,-834.55,0.00014389,2]
[418980970,1774708241139,-1570.0,0.000144,2]
[418980971,1774708241149,-161.0,0.000144,2]
[418980972,1774708241158,-2807.0,0.000144,2]
[418980973,1774708241169,-1570.0,0.000144,2]
[418980974,1774708241182,-376.20014153,0.00014413,2]
[418980975,1774708241193,-515.8645318,0.00014575,2]
[418980976,1774708241203,-16717.74,0.000146,2]
[418980977,1774708241212,-500.0,0.0001463,2]
[418980978,1774708241222,-407.32977688,0.0001463,2]
[418980979,1774708241233,-834.55,0.00014663,2]
[418980980,1774708241244,-201.41272504,0.00014664,2]
[418980981,1774708241254,-161.0,0.0001472,2]
[418980982,1774708241264,-162.93191076,0.0001485,2]
[418980983,1774708241274,-515.8645318,0.00014906,2]
[418980984,1774708241285,-834.61663931,0.00014937,2]
[418980985,1774708241295,-300.0,0.00015,2]
[418980986,1774708241304,-1570.0,0.0001504,2]
[418980987,1774708241314,-161.0,0.0001504,2]
[418980988,1774708241325,-1570.0,0.0001504,2]
[418980989,1774708241336,-2807.0,0.0001504,2]
[418980990,1774708241347,-1570.0,0.0001504,2]
[418980991,1774708241356,-620.0,0.0001504,2]
[418980992,1774708241365,-2807.0,0.0001504,2]
[418980993,1774708241375,-160.0,0.0001512,2]
[418980994,1774708241384,-160.0,0.0001512,2]
[418980995,1774708241393,-959.64475997,0.0001512,2]
[418980996,1774708241403,-160.0,0.0001512,2]
[418980997,1774708241412,-433.0,0.0001518,2]
[418980998,1774708241421,-407.32977688,0.00015198,2]
[418980999,1774708241431,-515.8645318,0.00015236,2]
[418981000,1774708241440,-304.74111163,0.00015288,2]
[418981001,1774708241450,-158.22,0.00015332,2]
[418981002,1774708241460,-2807.0,0.0001536,2]
[418981003,1774708241471,-2807.0,0.0001536,2]
[418981004,1774708241481,-587.0,0.00015477,2]
[418981005,1774708241492,-587.0,0.00015477,2]
[418981006,1774708241502,-174.827678,0.00015492,7]
[418981007,1774708241513,-247.111538,0.00015492,7]
[418981008,1774708241522,-259.2616,0.000155,2]
[418981009,1774708241531,-4000.0,0.00015507,2]
[418981010,1774708241540,-233.103572,0.00015523,7]
[418981011,1774708241549,-515.8645318,0.00015567,2]
[418981012,1774708241559,-2351.0,0.00015567,2]
[418981013,1774708241568,-500.0,0.00015644,2]
[418981014,1774708241578,-161.0,0.0001568,2]
[418981015,1774708241589,-230.069363,0.0001568,7]
[418981016,1774708241600,-1045.0,0.00015756,2]
[418981017,1774708241611,-407.32977688,0.00015765,2]
[418981018,1774708241623,-286.0,0.00015781,2]
[418981019,1774708241633,-200.0,0.000158,5]
[418981020,1774708241642,-1262.0,0.00015808,2]
[418981021,1774708241652,-924.0,0.00015808,2]
[418981022,1774708241662,-1216.0,0.00015808,2]
[418981023,1774708241672,-160.36774061,0.00015824,2]
[418981024,1774708241681,-250.0,0.00015838,2]
[418981025,1774708241690,-2503.47935232,0.0001584,2]
[418981026,1774708241700,-162.93191076,0.00015875,2]
[418981027,1774708241710,-2000.0,0.0001589,2]
[418981028,1774708241720,-4000.0,0.00015895,2]
[418981029,1774708241734,-515.8645318,0.00015897,2]
[418981030,1774708241743,-376.20014153,0.00015897,2]
[418981031,1774708241753,-2019.8128,0.000159,2]
[418981032,1774708241762,-200.0,0.000159,5]
[418981033,1774708241772,-218.9943877,0.00015973,2]
[418981034,1774708241782,-500.0,0.00015973,2]
[418981035,1774708241792,-500.0,0.00015973,2]
[418981036,1774708241802,-500.0,0.00015973,2]
[418981037,1774708241813,-528.15239752,0.00015981,2]
[418981038,1774708241822,-2436734.4517987,0.00015991,2]
[418981039,1774708241832,-151.0,0.00015997,2]
[418981040,1774708241842,-1808416.10502135,0.00016,2]
[418981041,1774708242096,177.79,0.00011748,2]
[418981042,1774708242191,-1117.08,0.00016,2]
[418981043,1774708242221,-621.0,0.00015756,2]
[418981044,1774708242231,-704497.08581889,0.00016,2]
[418981045,1774708242240,-49046.58642393,0.00016,2]
[418981046,1774708242250,-2602.51281655,0.00016,2]
[418981047,1774708242259,-250.0,0.00016,3]
[418981048,1774708242268,-151.0,0.00016,2]
[418981049,1774708242278,-151.0,0.00016,2]
[418981050,1774708242287,-151.0,0.00016,2]
[418981051,1774708242415,-155.156545,0.00016,2]
[418981052,1774708242424,-151.0,0.00016,2]
[418981053,1774708242434,-207.98764,0.00016,2]
[418981054,1774708242443,-207.98764,0.00016,2]
[418981055,1774708242453,-207.98764,0.00016,2]
[418981056,1774708242462,-207.98764,0.00016,2]
[418981057,1774708242471,-151.0,0.00016,2]
[418981058,1774708242480,-151.0,0.00016,2]
[418981059,1774708242489,-208.752654,0.00016,2]
[418981060,1774708242499,-151.0,0.00016,2]
[418981061,1774708242508,-151.0,0.00016,2]
[418981062,1774708242517,-151.0,0.00016,2]
[418981063,1774708242526,-787.60261,0.00016,2]
[418981064,1774708242536,-1523.0,0.00016,2]
[418981065,1774708242545,-1523.0,0.00016,2]
[418981066,1774708242554,-1523.0,0.00016,2]
[418981067,1774708242563,-1523.0,0.00016,2]
[418981068,1774708242572,-1523.0,0.00016,2]
[418981069,1774708242582,-1523.0,0.00016,2]
[418981070,1774708242591,-1523.0,0.00016,2]
[418981071,1774708242600,-1523.0,0.00016,2]
[418981072,1774708242609,-1523.0,0.00016,2]
[418981073,1774708242619,-1523.0,0.00016,2]
[418981074,1774708242628,-151.0,0.00016,2]
[418981075,1774708242637,-151.0,0.00016,2]
[418981076,1774708242647,-167.436847,0.00016,2]
[418981077,1774708242656,-406.762198,0.00016,2]
[418981078,1774708242666,-406.762198,0.00016,2]
[418981079,1774708242676,-406.762198,0.00016,2]
[418981080,1774708242685,-406.762198,0.00016,2]
[418981081,1774708242695,-151.0,0.00016,2]
[418981082,1774708242704,-291.598274,0.00016,2]
[418981083,1774708242714,-151.0,0.00016,2]
[418981084,1774708242723,-151.0,0.00016,2]
[418981085,1774708242732,-625.65505968,0.00016,2]
[418981086,1774708242742,-200.0,0.00016,2]
[418981087,1774708242751,-249.669586,0.00016,2]
[418981088,1774708242761,-249.669586,0.00016,2]
[418981089,1774708242770,-249.669586,0.00016,2]
[418981091,1774708242780,-249.669586,0.00016,2]
[418981093,1774708242789,-606.320897,0.00016,2]
[418981094,1774708242799,-606.320897,0.00016,2]
[418981095,1774708242809,-606.320897,0.00016,2]
[418981096,1774708242819,-606.320897,0.00016,2]
[418981097,1774708242828,-151.0,0.00016,2]
[418981098,1774708242838,-1523.0,0.00016,2]
[418981099,1774708242847,-151.0,0.00016,2]
[418981100,1774708242856,-151.0,0.00016,2]
[418981102,1774708242866,-336.0,0.00016083,2]
[418981103,1774708242875,-336.0,0.00016095,2]
[418981105,1774708242885,-2120.06,0.000161,2]
[418981106,1774708242895,-2957.83,0.000161,2]
[418981108,1774708242904,-625.65505968,0.000161,2]
[418981109,1774708242914,-336.0,0.00016107,2]
[418981111,1774708242924,-9999.99,0.00016116,2]
[418981112,1774708242933,-625.65505968,0.000162,2]
[418981114,1774708242942,-221.8,0.00016217,2]
[418981115,1774708242954,-336.0,0.00016281,2]
[418981116,1774708242963,-336.0,0.00016282,2]
[418981117,1774708242972,-4000.0,0.00016282,2]
[418981118,1774708242983,-336.0,0.00016284,2]
[418981119,1774708242994,-166.66,0.00016293,2]
[418981120,1774708243004,-336.0,0.00016325,2]
[418981121,1774708243013,-407.32977688,0.00016333,2]
[418981122,1774708243023,-200.0,0.0001634,2]
[418981123,1774708243033,-158.22,0.00016354,2]
[418981124,1774708243042,-150.0,0.000164,2]
[418981125,1774708243052,-213.0,0.000164,2]
[418981126,1774708243062,-302.46,0.000164,2]
[418981127,1774708243072,-355.08524227,0.000164,2]
[418981128,1774708243082,-2500.0,0.00016438,2]
[418981129,1774708243091,-2500.0,0.00016438,2]
[418981130,1774708243101,-2500.0,0.00016438,2]
[418981131,1774708243111,-2500.0,0.00016438,2]
[418981132,1774708243121,-2500.0,0.00016438,2]
[418981133,1774708243131,-2500.0,0.00016438,2]
[418981134,1774708243140,-2500.0,0.00016438,2]
[418981135,1774708243149,-2500.0,0.00016438,2]
[418981136,1774708243159,-2500.0,0.00016438,2]
[418981137,1774708243169,-2500.0,0.00016438,2]
[418981138,1774708243178,-2500.0,0.00016438,2]
[418981139,1774708243187,-2500.0,0.00016438,2]
[418981140,1774708243197,-2500.0,0.00016438,2]
[418981141,1774708243207,-2500.0,0.00016438,2]
[418981142,1774708243216,-2500.0,0.00016438,2]
[418981143,1774708243226,-2500.0,0.00016438,2]
[418981144,1774708243236,-2500.0,0.00016438,2]
[418981145,1774708243246,-2500.0,0.00016438,2]
[418981146,1774708243256,-2500.0,0.00016438,2]
[418981147,1774708243266,-2500.0,0.00016438,2]
[418981148,1774708243275,-2500.0,0.00016438,2]
[418981149,1774708243285,-2500.0,0.00016438,2]
[418981150,1774708243296,-2500.0,0.00016438,2]
[418981151,1774708243305,-2500.0,0.00016438,2]
[418981152,1774708243315,-2500.0,0.00016438,2]
[418981153,1774708243325,-2500.0,0.00016438,2]
[418981154,1774708243334,-205.32062414,0.00016438,2]
[418981155,1774708243344,-228.96,0.00016438,2]
[418981156,1774708243353,-151.0,0.00016438,2]
[418981157,1774708243363,-151.0,0.00016438,2]
[418981158,1774708243372,-151.0,0.00016438,2]
[418981159,1774708243382,-151.0,0.00016438,2]
[418981160,1774708243392,-151.0,0.00016438,2]
[418981161,1774708243401,-151.0,0.00016438,2]
[418981162,1774708243411,-151.0,0.00016438,2]
[418981163,1774708243420,-152.655674,0.00016438,2]
[418981164,1774708243430,-1837.713949,0.00016438,2]
[418981165,1774708243440,-1837.713949,0.00016438,2]
[418981166,1774708243449,-1837.713949,0.00016438,2]
[418981167,1774708243459,-300.0,0.00016438,2]
[418981168,1774708243468,-1837.713949,0.00016438,2]
[418981169,1774708243478,-393.472175,0.00016438,2]
[418981170,1774708243487,-393.472175,0.00016438,2]
[418981171,1774708243497,-393.472175,0.00016438,2]
[418981172,1774708243506,-393.472175,0.00016438,2]
[418981173,1774708243516,-336.0,0.00016453,2]
[418981174,1774708243526,-577.0,0.00016456,2]
[418981175,1774708243536,-736.0,0.00016493,2]
[418981176,1774708243548,-577.0,0.00016495,2]
[418981177,1774708243559,-2368.01,0.000165,2]
[418981178,1774708243569,-3605.62,0.000165,2]
[418981179,1774708243580,-1000.0,0.00016521,2]
[418981180,1774708243589,-1000.0,0.00016521,2]
[418981181,1774708243599,-336.0,0.00016566,2]
[418981182,1774708243608,-363.31246982,0.000166,2]
[418981183,1774708243618,-166.66,0.00016616,2]
[418981184,1774708243627,-577.0,0.0001662,2]
[418981185,1774708243638,-4000.0,0.0001667,2]
[418981186,1774708243647,-340.8487,0.000167,2]
[418981187,1774708243657,-233.7,0.00016712,2]
[418981188,1774708243667,-266.27,0.00016726,2]
[418981189,1774708243676,-336.0,0.00016744,2]
[418981190,1774708243685,-336.0,0.00016764,2]
[418981191,1774708243695,-1940.722,0.000168,2]
[418981193,1774708243704,-175.899,0.000168,2]
[418981195,1774708243714,-2000.0,0.000168,2]
[418981196,1774708243724,-336.0,0.00016827,2]
[418981197,1774708243734,-336.0,0.00016843,2]
[418981198,1774708243743,-336.0,0.00016862,2]
[418981199,1774708243752,-577.0,0.00016888,2]
[418981200,1774708243762,-500.0,0.00016897,2]
[418981202,1774708243772,-500.0,0.00016897,2]
[418981204,1774708243781,-500.0,0.00016897,2]
[418981205,1774708243790,-500.0,0.00016897,2]
[418981208,1774708243801,-500.0,0.00016897,2]
[418981209,1774708243811,-378.70961879,0.00016897,2]
[418981212,1774708243820,-500.0,0.00016897,2]
[418981214,1774708243830,-500.0,0.00016897,2]
[418981215,1774708243839,-500.0,0.00016897,2]
[418981217,1774708243850,-500.0,0.00016897,2]
[418981219,1774708243860,-500.0,0.00016897,2]
[418981220,1774708243870,-500.0,0.00016897,2]
[418981221,1774708243880,-500.0,0.00016897,2]
[418981222,1774708243888,-407.32977688,0.000169,2]
[418981223,1774708243898,-162.93191076,0.000169,2]
[418981224,1774708243908,-2000.0,0.000169,2]
[418981225,1774708243917,-1631.0,0.000169,5]
[418981226,1774708243927,-166.66,0.00016938,2]
[418981227,1774708243937,-500.0,0.00016952,2]
[418981228,1774708243946,-336.0,0.00016956,2]
[418981229,1774708243956,-823.0,0.00016976,2]
[418981230,1774708243966,-433.0,0.00016976,2]
[418981231,1774708243975,-788.31929485,0.00017,30]
[418981232,1774708243984,-1377513.50613057,0.00017,2]
[418981233,1774708243994,-466.0,0.00017,2]
[418981234,1774708244004,-503.0,0.00017,2]
[418981235,1774708244013,-350.0,0.00017,2]
[418981236,1774708244022,-500.0,0.00017007,2]
[418981237,1774708244032,-577.0,0.00017028,2]
[418981238,1774708244042,-221.8,0.00017028,2]
[418981239,1774708244051,-2000.0,0.00017039,2]
[418981240,1774708244061,-4000.0,0.00017058,2]
[418981241,1774708244070,-500.0,0.00017062,2]
[418981242,1774708244080,-160.47,0.00017063,2]
[418981243,1774708244089,-640.03697913,0.00017068,2]
[418981244,1774708244099,-1500.0,0.00017068,2]
[418981245,1774708244108,-336.0,0.0001709,2]
[418981246,1774708244119,-89198.97962417,0.000171,2]
[418981247,1774708244129,-880.56,0.00017117,2]
[418981248,1774708244138,-500.0,0.00017117,2]
[418981249,1774708244149,-3292.0,0.00017124,2]
[418981250,1774708244158,-500.0,0.00017172,2]
[418981251,1774708244167,-336.0,0.00017173,2]
[418981252,1774708244176,-577.0,0.00017211,2]
[418981253,1774708244186,-336.0,0.00017215,2]
[418981254,1774708244195,-500.0,0.00017227,2]
[418981255,1774708244205,-336.0,0.00017236,2]
[418981256,1774708244214,-4267.25,0.00017353,2]
[418981257,1774708244224,-158.22,0.00017376,2]
[418981258,1774708244233,-16717.74,0.000174,2]
[418981259,1774708244242,-210.50443297,0.00017414,2]
[418981260,1774708244252,-2824.39849986,0.00017437,2]
[418981261,1774708244262,-4509.33682768,0.00017437,2]
[418981262,1774708244272,-1600.0,0.00017457,2]
[418981263,1774708244283,-1000.0,0.00017487,2]
[418981264,1774708244293,-473.0,0.000175,7]
[418981265,1774708244302,-716.0,0.000175,7]
[418981266,1774708244312,-447.0,0.000175,7]
[418981267,1774708244322,-279.0,0.000175,7]
[418981268,1774708244332,-1755.16792343,0.00017616,2]
[418981269,1774708244342,-304.74111163,0.00017647,2]
[418981270,1774708244353,-788.13942688,0.000177,2]
[418981271,1774708244362,-403.0,0.000177,5]
[418981272,1774708244372,-800.0,0.00017808,2]
[418981273,1774708244383,-221.8,0.00017839,2]